Cogmind - Beta 10.2 @@@ ROGUE MODE // 2021.01.03 @ 19:17:55 Player: aperiodic Result: Destroyed by as-26080 with Assembled Maul Performance ------------- Evolutions (0) 0 Regions Visited (2) 400 Robots Destroyed (21) 105 Value Destroyed (453) 453 Prototype IDs (6) 120 Alien Tech Used (0) 0 Bonus (0) 0 TOTAL SCORE: 1078 Bonus ------- None Cogmind --------- Core Integrity 0/250 Matter 233/300 Energy 100/100 System Corruption 0% Temperature Cool (0) Movement Treading (180) Ox1 Location -10/Mines Parts ------- > --- POWER (1) -------- (None) > --- PROPULSION (2) --- Light Treads > --- UTILITY (2) ------ Large Storage Unit Large Storage Unit > --- WEAPON (2) ------- Assault Rifle Assault Rifle > --- INVENTORY (16) --- Improved Ion Engine Light Treads Wheel Wheel Medium Storage Unit High-capacity Matter Pod (127) EM Pulse Gun Mining Laser Peak State ------------ > --- POWER ------------ Improved Ion Engine > --- PROPULSION ------- Wheel Wheel > --- UTILITY ---------- Small Storage Unit Small Storage Unit > --- WEAPON ----------- Assault Rifle Light Assault Rifle > --- INVENTORY -------- Light Ion Engine Light Nuclear Core Light Treads Light Treads EM Pulse Gun Assault Rifle Light Assault Rifle Mining Laser [Rating: 9] Favorites ----------- Power Improved Ion Engine Engine Improved Ion Engine Propulsion Light Treads Treads Light Treads Wheel Wheel Utility Small Storage Unit Storage Small Storage Unit Weapon Assault Rifle Ballistic Gun Assault Rifle Special Weapon Mining Laser Build | -11 -10 -10 ------- Run | Scr Mat Min Slots Evolved . | . . . Power . | . . . Propulsion . | . . . Utility . | . . . Weapon . | . . . Parts Attached 32 | 8 21 3 Power 2 | 1 1 . Engine 2 | 1 1 . Core . | . . . Reactor . | . . . Propulsion 14 | 3 10 1 Treads 7 | . 6 1 Leg . | . . . Wheel 7 | 3 4 . Hover . | . . . Flight . | . . . Utility 5 | 2 3 . Device . | . . . Storage 5 | 2 3 . Processor . | . . . Hackware . | . . . Protection . | . . . Artifact . | . . . Weapon 11 | 2 7 2 Energy Gun . | . . . Energy Cannon . | . . . Ballistic Gun 8 | 2 4 2 Ballistic Cannon . | . . . Launcher . | . . . Special Weapon 3 | . 3 . Impact Weapon . | . . . Slashing Weapon . | . . . Piercing Weapon . | . . . Special Melee Weapon . | . . . Unidentified Prototypes . | . . . Parts Lost 5 | . . 5 Power 1 | . . 1 Propulsion 2 | . . 2 Utility . | . . . Weapon 2 | . . 2 Highest Loss Streak 5 | . . 5 Average Slot Usage (%) 99 | . 100 97 Engine 13 | . 14 12 Treads 18 | . 15 27 Wheel 9 | . 12 . Storage 28 | . 28 28 Ballistic Gun 27 | . 26 27 Naked Turns . | . . . Heaviest Build 42 | 14 42 42 Greatest Support 40 | 26 40 40 Greatest Overweight (x) 2 | . 2 1 Average Overweight (x) . | . . . Largest Inventory Capacity 16 | 8 16 16 Average Capacity 11 | 5 10 16 Most Carried 11 | 5 11 11 Average Carried 8 | 3 8 10 Final Capacity 16 | 8 16 16 Final Carried 11 | 5 11 8 Class Distribution -------------------- 100% | Mutant Dominant Class ---------------- Mutant | -10/Materials Mutant | -10/Mines Resources | -11 -10 -10 ----------- Run | Scr Mat Min Matter Collected 830 | 300 530 . Remotely . | . . . Salvage Created 735 | 68 667 . Parts 50 | 4 46 . Haulers Intercepted 2 | . 2 . Recyclers Shooed . | . . . Parts Field Recycled . | . . . Retrieved Matter . | . . . Parts Self-Destructed . | . . . Prevented . | . . . Kills | -11 -10 -10 ------- Run | Scr Mat Min Combat Hostiles Destroyed 12 | . 11 1 Guns 12 | . 11 1 Classes Destroyed 8 | 2 5 1 Worker 1 | . 1 . Tunneler 1 | 1 . . Hauler 2 | . 2 . Recycler 2 | 1 1 . Watcher 3 | . 3 . Swarmer 3 | . 3 . Grunt 8 | . 8 . Demolisher 1 | . . 1 Best Kill Streak 3 | 2 3 1 Combat Bots Only 3 | . 3 1 Max Kills in Single Turn 1 | 1 1 1 Gunslinging . | . . . Exploded . | . . . Melee . | . . . Uniques/NPCs Destroyed . | . . . Combat | -11 -10 -10 -------- Run | Scr Mat Min Damage Taken 1219 | . 405 814 Core 259 | . 35 224 Absorbed by Shields . | . . . Core Remaining (%) 100 | 100 . . Volleys Fired 78 | 5 65 8 Largest 2 | 2 2 2 Hottest 100 | 40 100 40 Shots Fired 145 | 10 119 16 Gun 134 | 10 108 16 Cannon . | . . . Launcher . | . . . Special 11 | . 11 . Kinetic 134 | 10 108 16 Thermal 11 | . 11 . Explosive . | . . . Electromagnetic . | . . . Robot Hit Streak 15 | 4 15 14 Robot Miss Streak 3 | 1 3 2 Penetration Max . | . . . Secondary Targets . | . . . Shots Hit Robots 96 | 7 76 13 Core Hits 44 | 4 34 6 Critical Hits 3 | . 3 . Critical Kills 2 | . 2 . Critical Parts Destroyed 1 | . 1 . Melee Attacks . | . . . Impact . | . . . Slashing . | . . . Piercing . | . . . Sneak Attacks . | . . . Combat Hostiles . | . . . Follow-up Attacks . | . . . Damage Inflicted 1080 | 67 860 153 Guns 1047 | 67 827 153 Cannons . | . . . Explosions . | . . . Melee . | . . . Ramming 9 | . 9 . Kinetic 1047 | 67 827 153 Thermal 24 | . 24 . Explosive . | . . . Electromagnetic . | . . . Impact . | . . . Slashing . | . . . Piercing . | . . . Highest Corruption . | . . . Average Corruption . | . . . Corruption Purged . | . . . Overload Shots . | . . . Overflow Damage . | . . . Projectiles . | . . . Explosions . | . . . Melee . | . . . Knockbacks . | . . . Impact . | . . . Kinetic . | . . . Secondary . | . . . Self-Inflicted Damage . | . . . Shots . | . . . Rammed 2 | . 2 . Targets Rammed 2 | . 2 . Kicked . | . . . Crushed . | . . . Highest Temperature 72 | . 72 8 Average Temperature 14 | . 15 4 Received Heat Transfer 200 | . 120 80 Siege Activations . | . . . Robots Corrupted . | . . . Combat Hostiles . | . . . Parts Fried . | . . . Impact Corruptions . | . . . Robots Melted . | . . . Combat Hostiles . | . . . Parts Melted . | . . . Heat Transferred 50 | . 50 . Parts Sabotaged . | . . . Parts Stolen . | . . . Parts Stripped . | . . . Power Chain Reactions . | . . . Missiles Intercepted . | . . . Alert | -11 -10 -10 ------- Run | Scr Mat Min Peak Influence 190 | 10 190 35 Initial 33 | . 6 33 Average 65 | 4 79 31 Maximum Alert Level . | . . . Low Security (%) 100 | 100 100 100 Level 1 . | . . . Level 2 . | . . . Level 3 . | . . . Level 4 . | . . . Level 5 . | . . . High Security . | . . . Max Security . | . . . Squads Dispatched 2 | . 2 . Investigation 2 | . 2 . Extermination . | . . . Reinforcement . | . . . Assault . | . . . Garrison . | . . . Intercept . | . . . Construction Impeded . | . . . Haulers Reinforced . | . . . Stealth | -11 -10 -10 --------- Run | Scr Mat Min Distress Signals . | . . . Communications Jammed . | . . . Distress Signals . | . . . Times Spotted 34 | . 20 14 Peak Tracking Total 10 | . 3 10 Tactical Retreats . | . . . Traps | -11 -10 -10 ------- Run | Scr Mat Min Traps Triggered 1 | . 1 . Indirectly . | . . . Trap Hack Attempts . | . . . Triggered . | . . . Disarmed . | . . . Reprogrammed . | . . . Reused . | . . . Traps Extracted . | . . . Installed . | . . . Triggered . | . . . Machines | -11 -10 -10 ---------- Run | Scr Mat Min Machines Disabled . | . . . Max in Single Turn . | . . . Machines Sabotaged . | . . . Garrisons Compromised . | . . . Overloaded Fab Kills . | . . . Fab Network Shutdowns . | . . . Hacking | -11 -10 -10 --------- Run | Scr Mat Min Machines Accessed 10 | . 10 . Terminals 8 | . 8 . Fabricators . | . . . Repair Stations . | . . . Recycling Units 2 | . 2 . Scanalyzers . | . . . Garrison Access . | . . . Total Hacks 30 | . 30 . Successful 14 | . 14 . Failed 16 | . 16 . Catastrophic 1 | . 1 . Database Lockouts . | . . . Manual 23 | . 23 . Terminals 28 | . 28 . Fabricators . | . . . Repair Stations . | . . . Recycling Units 2 | . 2 . Scanalyzers . | . . . Garrison Access . | . . . Terminal Hacks 8 | . 8 . Prototype ID Bank 5 | . 5 . Terminal Index 1 | . 1 . Locate Traps 1 | . 1 . Hauler Manifests 1 | . 1 . Fabricator Hacks . | . . . Repair Station Hacks . | . . . Recycling Unit Hacks . | . . . Scanalyzer . | . . . Garrison Access Hacks . | . . . Unauthorized Hacks 6 | . 6 . Terminals 4 | . 4 . Track 3 | . 3 . Operators 1 | . 1 . Fabricators . | . . . Repair Stations . | . . . Recycling Units 2 | . 2 . Tunnel 2 | . 2 . Scanalyzers . | . . . Garrison Access . | . . . Data Cores Recovered . | . . . Used . | . . . Hacking Detections 8 | . 8 . Full Trace Events . | . . . Feedback Events . | . . . Feedback Blocked . | . . . Robot Schematics Acquired . | . . . Robots Built . | . . . Matter . | . . . Time . | . . . Total Robot Build Rating . | . . . Part Schematics Acquired . | . . . Parts Built . | . . . Matter . | . . . Time . | . . . Total Part Build Rating . | . . . Parts Repaired . | . . . Time . | . . . Parts Recycled . | . . . Recycled Matter . | . . . Retrieved Matter . | . . . Retrieved Components . | . . . Parts Scanalyzed . | . . . Part Schematics Acquired . | . . . Parts Damaged . | . . . Bothacking | -11 -10 -10 ------------ Run | Scr Mat Min Used RIF Installer . | . . . Robots Hacked . | . . . Non-combat . | . . . Combat . | . . . Robot Hacks Applied . | . . . Relay Couplers Released . | . . . Robots Rewired . | . . . Allies Hacked . | . . . Hacks Repelled . | . . . Allies | -11 -10 -10 -------- Run | Scr Mat Min Total Allies . | . . . Largest Group . | . . . Highest-Rated Group . | . . . Highest-Rated Ally . | . . . Total Orders . | . . . Ally Attacks . | . . . Total Damage . | . . . Kills . | . . . Allies Corrupted . | . . . Allies Melted . | . . . Intel | -11 -10 -10 ------- Run | Scr Mat Min Robot Analysis Total . | . . . Derelict Logs Recovered . | . . . Drone Launches . | . . . Drone Recoveries . | . . . Exploration | -11 -10 -10 ------------- Run | Scr Mat Min Turns Passed 1777 | 74 1301 402 Spaces Moved 1000 | 53 814 133 Core 19 | 19 . . Treads 468 | . 335 133 Legs . | . . . Wheels 513 | 34 479 . Hover . | . . . Flight . | . . . Fastest Speed 50 | 50 80 160 Average Speed 122 | 73 116 179 Slowest Speed 180 | 100 180 180 Overloaded Moves . | . . . Propulsion Burnouts . | . . . Robots Hopped . | . . . Cave-ins Triggered . | . . . Exploration Rate (%) 46 | 3 99 37 Regions Visited 2 Branch Regions 1 Pre-discovered Areas 2 | . 2 . Known Exits Taken . | . . . Unknown Exits Taken 2 | 1 1 . Scrap Searched . | . . . Spaces Dug 8 | . 8 . Terrain Destroyed 10 | . 10 . Melee . | . . . Projectile 10 | . 10 . AOE . | . . . Terrain Rammed . | . . . Walls Destroyed . | . . . Machines Disabled . | . . . Actions | -11 -10 -10 --------- Run | Scr Mat Min Total 1389 | 77 1031 281 Wait 246 | 2 107 137 Move 998 | 52 813 133 Hop . | . . . Pick Up 21 | 8 13 . Fast Attach 6 | 6 . . Attach 4 | 1 . 3 Detach . | . . . Swap 22 | 1 21 . Drop 12 | 2 10 . Fire 78 | 5 65 8 Melee . | . . . Ram . | . . . Kick . | . . . Crush 2 | . 2 . Escape Stasis . | . . . Rewire . | . . . Trap . | . . . Miscellaneous . | . . . Route ------- -11/Scrapyard -10/Materials (discovered 4 exits: [*Mat x3] / [*Min]) -10/Mines (discovered 1 exit: [*Mat]) History --------- Turn | Location | Event 9 | -11/Scrapyard | Discovered new exit (range 16) 75 | -11/Scrapyard | Entered Materials 338 | -10/Materials | Build established: Mutant 393 | -10/Materials | Discovered new exit (range 6) 639 | -10/Materials | Discovered new exit (range 16) 933 | -10/Materials | Discovered new exit (range 16) 1076 | -10/Materials | Discovered new exit (range 10) 1376 | -10/Materials | Entered Mines 1429 | -10/Mines | Discovered new exit (range 10) 1567 | -10/Mines | Assembled infested the area 1749 | -10/Mines | Core integrity fell below 50% 1755 | -10/Mines | Core integrity fell below 20% 1778 | -10/Mines | Destroyed by as-26080 with Assembled Maul Last Messages --------------- 01750_ D-53 Grenadier destroyed. 01752_ Assault Rifle destroyed. 01752_ Lgt. Treads destroyed. 01754_ The unstable cave ceiling collapses. 01755_ K-01 Serf collects debris. 01757_ U-05 Engineer builds a Wall. 01762_ K-01 Serf collects debris. 01763_ D-53 Grenadier destroyed. 01765_ The unstable cave ceiling collapses. 01765_ K-01 Serf collects debris. 01769_ U-05 Engineer builds a Wall. 01769_ K-01 Serf collects debris. 01772_ The unstable cave ceiling collapses. 01772_ U-05 Engineer lays Concrete. 01774_ K-01 Serf collects debris. 01774_ U-05 Engineer lays Concrete. 01776_ The unstable cave ceiling collapses. 01777_ U-05 Engineer lays Concrete. 01778_ The unstable cave ceiling collapses. 01778_ K-01 Serf collects debris. Map ----- +----------------------------------------------------+ | ?????????????????????????????????????????????????? | | ?????????????????????????????????????????????????? | | ?????????????????????????????????????????????????? | | ?????????????????????????????????????????????????? | | ?????????????????????????????????????????????????? | | ?????????????????????????????????????????????????? | | ?????????????????????????????????????????????????? | | ?? ?????????????????????????????????????????????? | | ?? ???????????????????????????????????????????? | | ? #???????????????????????????????????????????? | | ? ##??????????????????????????????????????????? | | ? ##?????????????????????????????????????????? | | ? ##????????????????????????????????????????? | | ? #????????????????????????????????????????? | | ? ##??????????????????????##???????????????? | | ? < #????????????????????? #???????????????? | | # #????????????????????? ##??????????????? | | #???????????????????? ???????????????? | | #??????????????????? ????????????????? | | #????????#######??? a#?????????????????? | | #????????????## ##? #??????????????????? | | #????????????# # # %=#??????????????????? | | #???????????## # #??????????????????? | | #??????????## ##% ##??????????????????? | | #?????????## a! ##?????????????????? | | ##?????????# @### #?????????????????? | | ##?????????## # #?????????????????? | | #????????### ##?????????????????? | | #???????# ## r #?????????????????? | | #??????# # # #u ##?????????????????? | | #??????# ### ????????????????? | | #??????## ########### ???????????????? | | ########?###?????????## ??????????????? | | #????????????## k ?????????????? | | #####????????# # ##?? #??????? | | ###### ## ##?####??# # #??????? | | #????# ### #### ## #?????? | | ?????# ## ### # % #?????? | | ?????#### ##??### #??????? | | ????????# #??????# #####??????? | | ????????## #???????# ####??????????? | | ?????????### ##????????###?????????????? | | ???????????## ### ##?????????????????????????? | | ????????????## ##?####??????????????????????????? | | ?????????????####????????????????????????????????? | | ?????????????????????????????????????????????????? | | ?????????????????????????????????????????????????? | | ?????????????????????????????????????????????????? | | ?????????????????????????????????????????????????? | | ?????????????????????????????????????????????????? | +----------------------------------------------------+ Best States ------------- Heat Dissipation 25 Energy Generation 12 Energy Capacity 265 Matter Stores 300 Matter Capacity 300 Sight Range 16 Terrain Scan Density 10 Evasion (%) 50 Recoil Reduction 2 Item Schematics ----------------- None Robot Schematics ------------------ None Fabricated ------------ Nothing Alien Tech Used ----------------- None Achievements -------------- None Challenges ------------ None Game ------ Seed VisualSigixElectrolaser Manual? 0 Play Time 00:17:57 Cumulative 274.4 hours Start 2021.01.03 @ 19:02:26 End 2021.01.03 @ 19:17:55 Sessions 1 Manual Loads 0 Difficulty Rogue Special Mode None Game No. 100 Rogue 96 Adventurer 4 Explorer 0 Win Type - Total 4 Types 3/0/1/0/0/0/0/0/0 Lore% 67 Gallery% 76 Achievement% 61 Wizard Run 0 Options --------- ASCII 1 Keyboard 0 Movement Arrows Keybinds 0 Fullscreen 1 Font 18/SmallcapsGlow Map View 76x50 Tactical HUD 1 Map Filters NONE Filters NONE Steam 1 RUN: c04cd806-beec-4a02-98fa-0b86a104890a